Cogmind - Beta 15 @@@ ROGUE MODE // 2025.05.27 @ 21:35:23 Player: obl-vn Result: Self-destructed Performance ------------- Evolutions (3) 1500 Regions Visited (5) 1000 Robots Destroyed (0) 0 Value Destroyed (0) 0 Prototype IDs (3) 60 Alien Tech Used (0) 0 Bonus (834) 834 TOTAL SCORE: 3394 Bonus ------- Pacifist 834 Cogmind --------- Core Integrity 463/700 Matter 235/300 Energy 71/100 System Corruption 0% Temperature Cool (2) Movement Flying (34) Location -7/Storage Parts ------- > --- POWER (1) -------- (None) > --- PROPULSION (6) --- VTOL Module Improved Flight Unit > --- UTILITY (4) ------ Improved Signal Interpreter > --- WEAPON (2) ------- (None) > --- INVENTORY (5) ---- Advanced EMP Blaster Advanced EMP Blaster Missile Launcher Plasma Cutter Peak State ------------ > --- POWER ------------ (None) > --- PROPULSION ------- VTOL Module Improved Flight Unit Xenon Bombardment Thruster > --- UTILITY ---------- Improved Signal Interpreter > --- WEAPON ----------- Advanced EMP Blaster > --- INVENTORY -------- Missile Launcher Plasma Cutter [Rating: 16] Favorites ----------- Power Heavy Ion Engine Engine Heavy Ion Engine Propulsion Light Treads Treads Light Treads Leg Aluminum Leg Flight Unit Improved Flight Unit Utility Improved Signal Interpreter Processor Improved Signal Interpreter Weapon Advanced EMP Blaster Launcher Advanced EMP Blaster Build | -11 -10 -9 -8 -7 -7 ------- Run | Yrd Mat Mat Mat Fac Sto Slots Evolved 6 | . . 2 2 2 . Power . | . . . . . . Propulsion 4 | . . 2 1 1 . Utility 2 | . . . 1 1 . Weapon . | . . . . . . Parts Attached 10 | 2 . 2 3 2 1 Power 1 | . . . 1 . . Engine 1 | . . . 1 . . Core . | . . . . . . Reactor . | . . . . . . Propulsion 7 | 2 . 2 2 1 . Treads 2 | 2 . . . . . Leg 2 | . . 2 . . . Wheel . | . . . . . . Hover . | . . . . . . Flight 3 | . . . 2 1 . Utility 1 | . . . . 1 . Device . | . . . . . . Storage . | . . . . . . Processor 1 | . . . . 1 . Hackware . | . . . . . . Protection . | . . . . . . Artifact . | . . . . . . Weapon 1 | . . . . . 1 Energy Gun . | . . . . . . Energy Cannon . | . . . . . . Ballistic Gun . | . . . . . . Ballistic Cannon . | . . . . . . Launcher 1 | . . . . . 1 Special Weapon . | . . . . . . Impact Weapon . | . . . . . . Slashing Weapon . | . . . . . . Piercing Weapon . | . . . . . . Special Melee Weapon . | . . . . . . Unidentified Prototypes 3 | . . . 2 . 1 Parts Lost 5 | . . 4 . . 1 Power . | . . . . . . Propulsion 5 | . . 4 . . 1 Utility . | . . . . . . Weapon . | . . . . . . Highest Loss Streak 4 | . . 4 . . 1 To Critical Strikes . | . . . . . . Average Backups 2 | 1 2 . 2 2 3 Power . | . . . . . . Propulsion . | 1 2 . . . . Utility . | . . . . . . Weapon . | . . . . 1 2 Tool/Special . | . . . . . . Unused Backups 4 | . . . 1 . 3 Power . | . . . . . . Propulsion . | . . . . . . Utility 1 | . . . 1 . . Weapon 2 | . . . . . 2 Tool/Special 1 | . . . . . 1 Average Slot Usage (%) 23 | . 28 36 1 19 28 Treads 7 | . 28 19 . . . Leg 5 | . . 17 . . . Flight 7 | . . . 1 15 21 Processor 2 | . . . . 3 7 Peak Build Rating 16 | 2 2 4 5 12 16 Average Rating 5 | . 2 3 . 6 12 On Entrance 3 | . 2 2 . 5 12 Naked Turns 116 | . . 16 100 . . Heaviest Build . | . . . . . . Greatest Support 15 | 3 3 3 9 9 15 Greatest Overweight (x) . | . . . . . . Average Overweight (x) . | . . . . . . Largest Inventory Capacity 5 | 5 5 5 5 5 5 Average Capacity 5 | 5 5 5 5 5 5 Most Carried 5 | 4 2 1 5 3 5 Average Carried 2 | 2 2 . 2 2 3 Final Capacity 5 | 5 5 5 5 5 5 Final Carried 4 | 2 2 1 3 2 4 Class Distribution -------------------- 84% | Mutant 15% | Sprinter Dominant Class ---------------- Mutant | -10/Materials Mutant | -9/Materials Mutant | -8/Materials Mutant | -7/Factory Sprinter | -7/Storage Resources | -11 -10 -9 -8 -7 -7 ----------- Run | Yrd Mat Mat Mat Fac Sto Matter Collected 220 | 220 . . . . . Remotely . | . . . . . . Salvage Created . | . . . . . . Parts . | . . . . . . Haulers Intercepted . | . . . . . . Recyclers Shooed . | . . . . . . Parts Field Recycled . | . . . . . . Retrieved Matter . | . . . . . . Parts Self-Destructed . | . . . . . . Prevented . | . . . . . . Kills | -11 -10 -9 -8 -7 -7 ------- Run | Yrd Mat Mat Mat Fac Sto Combat Hostiles Destroyed . | . . . . . . Classes Destroyed . | . . . . . . Best Kill Streak . | . . . . . . Combat Bots Only . | . . . . . . Max Kills in Single Turn . | . . . . . . Gunslinging . | . . . . . . Exploded . | . . . . . . Melee . | . . . . . . Uniques/NPCs Destroyed . | . . . . . . Combat | -11 -10 -9 -8 -7 -7 -------- Run | Yrd Mat Mat Mat Fac Sto Hostile Shots Fired 295 | . 10 134 60 . 91 Missed 136 | . 3 61 22 . 50 Hits 159 | . 7 73 38 . 41 Projectile 159 | . 7 73 38 . 41 Critical Strikes 1 | . . . 1 . . Damage Taken 1523 | . 54 668 482 . 319 Core 953 | . 22 220 474 . 237 Absorbed by Shields . | . . . . . . Core Remaining (%) 62 | 100 91 45 13 . . Volleys Fired . | . . . . . . Largest . | . . . . . . Hottest . | . . . . . . Shots Fired . | . . . . . . Gun . | . . . . . . Cannon . | . . . . . . Launcher . | . . . . . . Special . | . . . . . . Kinetic . | . . . . . . Thermal . | . . . . . . Explosive . | . . . . . . Electromagnetic . | . . . . . . Robot Hit Streak . | . . . . . . Robot Miss Streak . | . . . . . . Penetration Max . | . . . . . . Secondary Targets . | . . . . . . Shots Hit Robots . | . . . . . . Core Hits . | . . . . . . Critical Kills . | . . . . . . Critical Parts Destroyed . | . . . . . . Critical Strikes . | . . . . . . Melee Attacks . | . . . . . . Impact . | . . . . . . Slashing . | . . . . . . Piercing . | . . . . . . Sneak Attacks . | . . . . . . Combat Hostiles . | . . . . . . Follow-up Attacks . | . . . . . . Damage Inflicted 15 | . . . 15 . . Guns . | . . . . . . Cannons . | . . . . . . Explosions . | . . . . . . Melee . | . . . . . . Ramming 15 | . . . 15 . . Kinetic . | . . . . . . Thermal . | . . . . . . Explosive . | . . . . . . Electromagnetic . | . . . . . . Impact . | . . . . . . Slashing . | . . . . . . Piercing . | . . . . . . Highest Corruption 2 | . . . 2 . . Average Corruption 2 | . . . 2 . . Corruption Purged . | . . . . . . Corruption Blocked . | . . . . . . Overload Shots . | . . . . . . Overflow Damage . | . . . . . . Projectiles . | . . . . . . Explosions . | . . . . . . Melee . | . . . . . . Knockbacks . | . . . . . . Impact . | . . . . . . Kinetic . | . . . . . . Secondary . | . . . . . . Self-Inflicted Damage 6 | . . . 6 . . Shots . | . . . . . . Rammed 5 | . . 1 4 . . Targets Rammed 5 | . . 1 4 . . Kicked . | . . . . . . Crushed . | . . . . . . Highest Temperature . | . . . . . . Average Temperature . | . . . . . . Received Heat Transfer 375 | . . 78 198 . 99 Siege Activations . | . . . . . . Martial Activations . | . . . . . . Shielding Activations . | . . . . . . Robots Disrupted . | . . . . . . Combat Hostiles . | . . . . . . Robots Corrupted . | . . . . . . Combat Hostiles . | . . . . . . Parts Fried . | . . . . . . Impact Corruptions . | . . . . . . Robots Melted . | . . . . . . Combat Hostiles . | . . . . . . Parts Melted . | . . . . . . Heat Transferred . | . . . . . . Parts Sabotaged . | . . . . . . Parts Stolen . | . . . . . . Parts Stripped . | . . . . . . Power Chain Reactions . | . . . . . . Alert | -11 -10 -9 -8 -7 -7 ------- Run | Yrd Mat Mat Mat Fac Sto Maximum Alert Level . | . . . . . . Low Security (%) 100 | 100 100 100 100 100 100 Level 1 . | . . . . . . Level 2 . | . . . . . . Level 3 . | . . . . . . Level 4 . | . . . . . . Level 5 . | . . . . . . High Security . | . . . . . . Max Security . | . . . . . . Peak Influence 90 | . . 90 37 29 82 Initial 37 | . . . 37 14 3 Average 16 | . . 6 20 14 32 Influence Increases 296 | . . 120 45 15 116 Successful Hack 11 | . . . . . 11 Partial Spotted 45 | . . . . 15 30 Lose Combat Pursuer 240 | . . 120 45 . 75 Influence Decreases 234 | . . 30 103 38 63 Entered New Map 77 | . . . 53 18 6 Time Decay 137 | . . 20 50 20 47 Lost Part 20 | . . 10 . . 10 Squads Dispatched 5 | . . 3 2 . . Investigation 2 | . . 1 1 . . Extermination . | . . . . . . Reinforcement 3 | . . 2 1 . . Assault . | . . . . . . Garrison . | . . . . . . Intercept . | . . . . . . Searches Triggered . | . . . . . . Construction Impeded . | . . . . . . Haulers Reinforced . | . . . . . . Active Scanning Responses . | . . . . . . Cargo Convoy Interrupts . | . . . . . . Stealth | -11 -10 -9 -8 -7 -7 --------- Run | Yrd Mat Mat Mat Fac Sto Distress Signals 4 | . . 2 . . 2 Communications Jammed . | . . . . . . Distress Signals . | . . . . . . Times Spotted 56 | . 3 21 17 1 14 Peak Tracking Total 17 | . 3 17 14 1 7 Tactical Retreats 8 | . . 3 2 . 3 Traps | -11 -10 -9 -8 -7 -7 ------- Run | Yrd Mat Mat Mat Fac Sto Traps Triggered 3 | . . 1 1 . 1 Indirectly . | . . . . . . Trap Hack Attempts . | . . . . . . Triggered . | . . . . . . Disarmed . | . . . . . . Reprogrammed . | . . . . . . Reused . | . . . . . . Traps Extracted . | . . . . . . Installed . | . . . . . . Triggered . | . . . . . . Machines | -11 -10 -9 -8 -7 -7 ---------- Run | Yrd Mat Mat Mat Fac Sto Machines Disabled . | . . . . . . Max in Single Turn . | . . . . . . Machines Repaired . | . . . . . . Machines Dismantled . | . . . . . . Machines Sabotaged . | . . . . . . Overloaded Fab Kills . | . . . . . . Hacking | -11 -10 -9 -8 -7 -7 --------- Run | Yrd Mat Mat Mat Fac Sto Machines Accessed 2 | . . . . . 2 Terminals 2 | . . . . . 2 Fabricators . | . . . . . . Repair Stations . | . . . . . . Recycling Units . | . . . . . . Scanalyzers . | . . . . . . Garrison Access . | . . . . . . Total Hacks 3 | . . . . . 3 Successful 2 | . . . . . 2 Failed 1 | . . . . . 1 Catastrophic . | . . . . . . Database Lockouts . | . . . . . . Manual . | . . . . . . Terminals 3 | . . . . . 3 Fabricators . | . . . . . . Repair Stations . | . . . . . . Recycling Units . | . . . . . . Scanalyzers . | . . . . . . Garrison Access . | . . . . . . Terminal Hacks 2 | . . . . . 2 Open Door 2 | . . . . . 2 Fabricator Hacks . | . . . . . . Repair Station Hacks . | . . . . . . Recycling Unit Hacks . | . . . . . . Scanalyzer . | . . . . . . Garrison Access Hacks . | . . . . . . Unauthorized Hacks . | . . . . . . Terminals . | . . . . . . Fabricators . | . . . . . . Repair Stations . | . . . . . . Recycling Units . | . . . . . . Scanalyzers . | . . . . . . Garrison Access . | . . . . . . Data Cores Recovered . | . . . . . . Used . | . . . . . . Hacking Detections 1 | . . . . . 1 Full Trace Events . | . . . . . . Feedback Events . | . . . . . . Feedback Blocked . | . . . . . . Robot Schematics Acquired . | . . . . . . Robots Built . | . . . . . . Authchips . | . . . . . . Time . | . . . . . . Total Robot Build Rating . | . . . . . . Part Schematics Acquired . | . . . . . . Parts Built . | . . . . . . Authchips . | . . . . . . Time . | . . . . . . Total Part Build Rating . | . . . . . . Parts Repaired . | . . . . . . Time . | . . . . . . Parts Recycled . | . . . . . . Recycled Matter . | . . . . . . Retrieved Matter . | . . . . . . Retrieved Components . | . . . . . . Parts Scanalyzed . | . . . . . . Part Schematics Acquired . | . . . . . . Parts Damaged . | . . . . . . Bothacking | -11 -10 -9 -8 -7 -7 ------------ Run | Yrd Mat Mat Mat Fac Sto Used RIF Installer . | . . . . . . Robots Hacked . | . . . . . . Non-combat . | . . . . . . Combat . | . . . . . . Robot Hacks Applied . | . . . . . . Relay Couplers Released . | . . . . . . Fabnet Peak Effective % . | . . . . . . Robots Rewired . | . . . . . . Allies Hacked . | . . . . . . Hacks Repelled . | . . . . . . Allies | -11 -10 -9 -8 -7 -7 -------- Run | Yrd Mat Mat Mat Fac Sto Total Allies . | . . . . . . Largest Group . | . . . . . . Highest-Rated Group . | . . . . . . Highest-Rated Ally . | . . . . . . Total Orders . | . . . . . . Ally Attacks . | . . . . . . Total Damage . | . . . . . . Kills . | . . . . . . Allies Corrupted . | . . . . . . Allies Melted . | . . . . . . Intel | -11 -10 -9 -8 -7 -7 ------- Run | Yrd Mat Mat Mat Fac Sto Active Infowar (turns) . | . . . . . . Robot Analysis Total . | . . . . . . Derelict Logs Recovered . | . . . . . . Drone Launches . | . . . . . . Drone Recoveries . | . . . . . . Exploration | -11 -10 -9 -8 -7 -7 ------------- Run | Yrd Mat Mat Mat Fac Sto Turns Passed 465 | 24 21 138 109 53 120 Spaces Moved 1031 | 37 42 267 196 147 342 Core 525 | 37 42 267 178 . 1 Treads . | . . . . . . Legs . | . . . . . . Wheels . | . . . . . . Hover . | . . . . . . Flight 506 | . . . 18 147 341 Fastest Speed 32 | 50 50 50 34 34 32 Average Speed 41 | 50 50 50 48 34 32 Slowest Speed 50 | 50 50 50 50 34 50 Overloaded Moves . | . . . . . . Propulsion Burnouts . | . . . . . . Robots Hopped 8 | . . . . 2 6 Potential Cave-ins . | . . . . . . Cave-ins Triggered . | . . . . . . Exploration Rate (%) 24 | 3 10 54 24 8 48 Regions Visited 5 Branch Regions 1 Pre-discovered Areas . | . . . . . . Known Exits Taken 1 | . . . . 1 . Unknown Exits Taken 4 | 1 1 1 1 . . Scrap Searched . | . . . . . . Spaces Dug . | . . . . . . Terrain Destroyed . | . . . . . . Melee . | . . . . . . Projectile . | . . . . . . AOE . | . . . . . . Terrain Rammed . | . . . . . . Walls Destroyed . | . . . . . . Machines Disabled . | . . . . . . Actions | -11 -10 -9 -8 -7 -7 --------- Run | Yrd Mat Mat Mat Fac Sto Total 1052 | 42 41 270 209 147 343 Wait . | . . . . . . Move 1012 | 36 41 266 195 142 332 Hop 6 | . . . . 2 4 Pick Up 14 | 4 . 1 5 1 3 Fast Attach 2 | . . . 1 . 1 Attach 10 | 2 . 2 2 2 2 Detach 1 | . . . . . 1 Swap . | . . . . . . Drop 2 | . . . 2 . . Fire . | . . . . . . Melee . | . . . . . . Ram 5 | . . 1 4 . . Kick . | . . . . . . Crush . | . . . . . . Escape Stasis . | . . . . . . Rewire . | . . . . . . Trap . | . . . . . . Miscellaneous . | . . . . . . Route ------- -11/Scrapyard -10/Materials -9/Materials (discovered 2 exits: [*Mat] / [*Min]) -8/Materials -7/Factory (discovered 2 exits: *Sto / *Low) -7/Storage History --------- Turn | Location | Event 13 | -11/Scrapyard | Discovered new exit (range 15) 25 | -11/Scrapyard | Entered Materials 40 | -10/Materials | Discovered new exit (range 13) 46 | -10/Materials | Entered another Materials area 46 | -9/Materials | Evolved 2 slots: Propulsion x2 105 | -9/Materials | Discovered new exit (range 15) 176 | -9/Materials | Discovered new exit (range 15) 183 | -9/Materials | Core integrity fell below 50% 184 | -9/Materials | Entered another Materials area 184 | -8/Materials | Evolved 2 slots: Propulsion x1, Utility x1 199 | -8/Materials | Lost 4 parts (4n) 279 | -8/Materials | Core integrity fell below 50% 290 | -8/Materials | Core integrity fell below 20% 291 | -8/Materials | Discovered new exit (range 5) 293 | -8/Materials | Entered Factory 293 | -7/Factory | Evolved 2 slots: Propulsion x1, Utility x1 307 | -7/Factory | Build established: Mutant 318 | -7/Factory | Discovered new exit (range 4) 320 | -7/Factory | Identified exit to Lower Caves 340 | -7/Factory | Discovered new exit (range 11) 343 | -7/Factory | Identified exit to Storage 346 | -7/Factory | Entered Storage 466 | -7/Storage | Self-destructed Last Messages --------------- 00377_ Acquired Adv. EMP Blaster. 00402_ K-01 Serf collects debris. 00405_ W-25 Informer sends out distress signal. 00409_ K-01 Serf collects debris. 00426_ Connecting with Door Terminal... >>Open(Door) Sealed Heavy Doors opened. 00445_ Two rows of pristine grunt class robots stand immobile, all facing the entryway as if waiting for something. 00445_ Connecting with Terminal... 00448_ Xenon Bombardment Thruster destroyed. 00456_ Triggered Blade Trap. 00456_ Massive razor-sharp blades shoot up from within the floor. 00456_ VTOL Module severed. 00456_ Imp. Flight Unit severed. 00456_ Acquired VTOL Module. 00458_ Acquired Imp. Flight Unit. 00466_ K-01 Serf cleans the Heavy Doors. Map ----- +----------------------------------------------------+ | ?????????????????????????????????????????????????? | | ?????????????????????????????????????????????????? | | ?????????????????????????????????????????????????? | | ?????????????????????????????????????????????????? | | ?????????????????????????????????????????????????? | | ?????????????????????????????????????????????????? | | ?????????????????????????????????????????????????? | | ?????????????????????????????????????????????????? | | ?????????????????????????????????????????????????? | | ?????????????????????????????????????????????????? | | ?????????????????????????????????????????????????? | | ?????????????????????????????????????????????????? | | ?????????????????????????????????????????????????? | | ?????????????????????????????????????????????????? | | ?????????????????????????????????????????????????? | | ???????????????????????????????????????##?????# #? | | ????????????????????????###????????????# ? | | ??????????#????????????? ! ????????????# """" """" | | ??????????# ????????????! ????????????# """" """" | | ??###?????# "??????#???? ????????????# """" """" | | ??#"""????# "???? #???? k ????????????# """" """? | | ?##"Y"##??# """" #??##" "##??????????# ??? | | ?# ?? #??# T#??????????? ????? | | ?#""" ???? ????? #?????????????#+#?????? | | ?#""" #+###+#########/################ ####### | | ?#""" # uY u @ l gg ^ | | ?# + k kg a | | ?#""" # k | | ?#""" ### ############################+####### | | ?#""" ???# #????????????????????????? #?? | | ?# ???# #??????????????????????? """"" #?? | | ####+###????# #??????????????????????# ?????? #?? | | ######## ####???????????????????#??????? #?? | | #???????????????????????????" #?? | | #####+## #????##?????????????????????" #?? | | ##T #??#???## ?????????????# """"" #?? | | ### #??????? ????????????# #?? | | #?#[[[#???????? ????????????#########+### | | "" #?#[[[#????????# ????????????# + | | """" #?#####????????# #############! ] # # | | """" #??????????????# + ! # # | | """" #+#####??????????# ###########+###### + | | # T #??????????# #??????##?# #????#+### | | + #??????????# #???? ] #?#####??????# | | ##+##+# #? ????? #?# #?? #???? #??? ??# | | #??" # ? ![? ### # !! #??? #?"""??# | | #???? # [[[ + + ![ #?? ! + "????# | | #???????" [[[ # # ![ #?| #??????# | | #???????" # ########## !#??????# | | #???????? """ ?/ + #??????# | +----------------------------------------------------+ Best States ------------- Heat Dissipation 34 Energy Generation 5 Energy Capacity 100 Matter Stores 300 Matter Capacity 300 Sight Range 16 Terrain Scan Density 10 Evasion (%) 63 Item Schematics ----------------- None Robot Schematics ------------------ None Fabricated ------------ Nothing Repaired ---------- Nothing Alien Tech Used ----------------- None Achievements -------------- None Challenges ------------ None Game ------ Seed CoreLinearPropulsion Manual? 0 Play Time 00:13:16 Cumulative 52.3 hours Start 2025.05.27 @ 21:25:07 End 2025.05.27 @ 21:35:23 Sessions 1 Manual Loads 0 Difficulty Rogue Special Mode None Game No. 37 Rogue 37 Adventurer 0 Explorer 0 Win Type - Total 1 Types 0/0/0/1/0/0/0/0/0/0 Lore% 20 Gallery% 33 Achievement% 38 Wizard Run 0 Options --------- Layout 1 ASCII 0 Keyboard 0 Movement Mouse Keybinds 0 Fullscreen 1 Font 32/SmallcapsGlow Map View 50x35 Zoom Use 0% Tactical HUD 1 Map Filters NONE Filters NONE Steam 1 RUN: 7b393336-99ed-4efb-8172-470f6cb4c433